{"text_format":"3","workbook":"xlsx","n_sheets":1,"sheets":["Buget lunar personal"],"read":"whole","date_system":"1900"}

{"sheet":"Buget lunar personal","index":0,"n_rows":64,"n_cols":10,"rows_kept":64,"merged":[[1,1,1,9],[2,1,2,9],[4,1,6,1],[4,2,4,3],[4,6,5,8],[4,9,5,9],[5,2,5,3],[6,2,6,3],[6,6,7,8],[6,9,7,9],[7,1,9,1],[7,2,7,3],[8,2,8,3],[8,6,9,8],[8,9,9,9],[9,2,9,3],[22,6,22,9],[23,1,23,4],[31,6,31,9],[33,1,33,4],[38,6,38,9],[40,1,40,4],[44,6,44,9],[46,1,46,4],[50,6,50,9],[54,1,54,4],[57,6,57,9],[58,6,59,8],[58,9,59,9],[60,6,61,8],[60,9,61,9],[62,6,63,8],[62,9,63,9]]}
[]
[null,"Buget lunar personal"]
[]
[]
[null,"VENIT LUNAR PROIECTAT","Venit 1",null,{"v":2500,"d":"2,500 lei"},null,"BALANȚĂ PROGNOZATĂ (venit proiectat minus cheltuieli)",null,null,{"$f":"E7-J59","v":{"v":940,"d":"940 lei"}}]
[null,null,"Venit suplimentar",null,{"v":500,"d":"500 lei"}]
[null,null,"Total venit lunar",null,{"$f":"SUM(E5:E6)","v":{"v":3000,"d":"3,000 lei"}},null,"BALANȚĂ REALĂ (venit real minus cheltuieli)",null,null,{"$f":"E10-J61","v":{"v":960,"d":"960 lei"}}]
[null,"VENIT LUNAR EFECTIV","Venit 1",null,{"v":2500,"d":"2,500 lei"}]
[null,null,"Venit suplimentar",null,{"v":500,"d":"500 lei"},null,"DIFERENȚĂ (real minus prognozat)",null,null,{"$f":"J7-J5","v":{"v":20,"d":"20 lei"}}]
[null,null,"Total venit lunar",null,{"$f":"SUM(E8:E9)","v":{"v":3000,"d":"3,000 lei"}}]
[]
[null,"LOCUINȚĂ","Costul proiectat","Costul efectiv","Diferență",null,"DISTRACȚIE","Costul proiectat","Costul efectiv","Diferență"]
[null,"Credit ipotecar sau chirie",{"v":1500,"d":"1,500 lei"},{"v":1400,"d":"1,400 lei"},{"$f":"Tabel1[[#This Row],[Costul proiectat]]-Tabel1[[#This Row],[Costul efectiv]]","v":{"v":100,"d":"100 lei"}},null,"Video/DVD",{"v":0,"d":"0 lei"},{"v":50,"d":"50 lei"},{"$f":"Tabel2[[#This Row],[Costul proiectat]]-Tabel2[[#This Row],[Costul efectiv]]","v":{"v":-50,"d":"-50 lei"}}]
[null,"Telefon",{"v":60,"d":"60 lei"},{"v":100,"d":"100 lei"},{"$f":"Tabel1[[#This Row],[Costul proiectat]]-Tabel1[[#This Row],[Costul efectiv]]","v":{"v":-40,"d":"-40 lei"}},null,"CD-uri",null,null,{"$f":"Tabel2[[#This Row],[Costul proiectat]]-Tabel2[[#This Row],[Costul efectiv]]","v":{"v":0,"d":"0 lei"}}]
[null,"Electricitate",{"v":50,"d":"50 lei"},{"v":60,"d":"60 lei"},{"$f":"Tabel1[[#This Row],[Costul proiectat]]-Tabel1[[#This Row],[Costul efectiv]]","v":{"v":-10,"d":"-10 lei"}},null,"Filme",null,null,{"$f":"Tabel2[[#This Row],[Costul proiectat]]-Tabel2[[#This Row],[Costul efectiv]]","v":{"v":0,"d":"0 lei"}}]
[null,"Gaze",{"v":200,"d":"200 lei"},{"v":180,"d":"180 lei"},{"$f":"Tabel1[[#This Row],[Costul proiectat]]-Tabel1[[#This Row],[Costul efectiv]]","v":{"v":20,"d":"20 lei"}},null,"Concerte",null,null,{"$f":"Tabel2[[#This Row],[Costul proiectat]]-Tabel2[[#This Row],[Costul efectiv]]","v":{"v":0,"d":"0 lei"}}]
[null,"Apă și canalizare",null,null,{"$f":"Tabel1[[#This Row],[Costul proiectat]]-Tabel1[[#This Row],[Costul efectiv]]","v":{"v":0,"d":"0 lei"}},null,"Evenimente sportive",null,null,{"$f":"Tabel2[[#This Row],[Costul proiectat]]-Tabel2[[#This Row],[Costul efectiv]]","v":{"v":0,"d":"0 lei"}}]
[null,"Cablu",null,null,{"$f":"Tabel1[[#This Row],[Costul proiectat]]-Tabel1[[#This Row],[Costul efectiv]]","v":{"v":0,"d":"0 lei"}},null,"Teatru live",null,null,{"$f":"Tabel2[[#This Row],[Costul proiectat]]-Tabel2[[#This Row],[Costul efectiv]]","v":{"v":0,"d":"0 lei"}}]
[null,"Eliminare reziduri",null,null,{"$f":"Tabel1[[#This Row],[Costul proiectat]]-Tabel1[[#This Row],[Costul efectiv]]","v":{"v":0,"d":"0 lei"}},null,"Altele",null,null,{"$f":"Tabel2[[#This Row],[Costul proiectat]]-Tabel2[[#This Row],[Costul efectiv]]","v":{"v":0,"d":"0 lei"}}]
[null,"Întreținere sau reparații",null,null,{"$f":"Tabel1[[#This Row],[Costul proiectat]]-Tabel1[[#This Row],[Costul efectiv]]","v":{"v":0,"d":"0 lei"}},null,"Altele",null,null,{"$f":"Tabel2[[#This Row],[Costul proiectat]]-Tabel2[[#This Row],[Costul efectiv]]","v":{"v":0,"d":"0 lei"}}]
[null,"Consumabile",null,null,{"$f":"Tabel1[[#This Row],[Costul proiectat]]-Tabel1[[#This Row],[Costul efectiv]]","v":{"v":0,"d":"0 lei"}},null,"Altele",null,null,{"$f":"Tabel2[[#This Row],[Costul proiectat]]-Tabel2[[#This Row],[Costul efectiv]]","v":{"v":0,"d":"0 lei"}}]
[null,"Altele",null,null,{"$f":"Tabel1[[#This Row],[Costul proiectat]]-Tabel1[[#This Row],[Costul efectiv]]","v":{"v":0,"d":"0 lei"}},null,"Total",{"$f":"SUBTOTAL(109,Tabel2[Costul proiectat])","v":{"v":0,"d":"0 lei"}},{"$f":"SUBTOTAL(109,Tabel2[Costul efectiv])","v":{"v":50,"d":"50 lei"}},{"$f":"SUBTOTAL(109,Tabel2[Diferență])","v":{"v":-50,"d":"-50 lei"}}]
[null,"Total",{"$f":"SUBTOTAL(109,Tabel1[Costul proiectat])","v":{"v":1810,"d":"1,810 lei"}},{"$f":"SUBTOTAL(109,Tabel1[Costul efectiv])","v":{"v":1740,"d":"1,740 lei"}},{"$f":"SUBTOTAL(109,Tabel1[Diferență])","v":{"v":70,"d":"70 lei"}}]
[{"$nulls":6},"ÎMPRUMUTURI","Costul proiectat","Costul efectiv","Diferență"]
[null,"TRANSPORT","Costul proiectat","Costul efectiv","Diferență",null,"Personal",null,null,{"$f":"Tabel8[[#This Row],[Costul proiectat]]-Tabel8[[#This Row],[Costul efectiv]]","v":{"v":0,"d":"0 lei"}}]
[null,"Plată vehicul",{"v":250,"d":"250 lei"},{"v":250,"d":"250 lei"},{"$f":"Tabel3[[#This Row],[Costul proiectat]]-Tabel3[[#This Row],[Costul efectiv]]","v":{"v":0,"d":"0 lei"}},null,"Student",null,null,{"$f":"Tabel8[[#This Row],[Costul proiectat]]-Tabel8[[#This Row],[Costul efectiv]]","v":{"v":0,"d":"0 lei"}}]
[null,"Tarif autobuz/taxi",null,null,{"$f":"Tabel3[[#This Row],[Costul proiectat]]-Tabel3[[#This Row],[Costul efectiv]]","v":{"v":0,"d":"0 lei"}},null,"Card de credit",null,null,{"$f":"Tabel8[[#This Row],[Costul proiectat]]-Tabel8[[#This Row],[Costul efectiv]]","v":{"v":0,"d":"0 lei"}}]
[null,"Asigurare",null,null,{"$f":"Tabel3[[#This Row],[Costul proiectat]]-Tabel3[[#This Row],[Costul efectiv]]","v":{"v":0,"d":"0 lei"}},null,"Card de credit",null,null,{"$f":"Tabel8[[#This Row],[Costul proiectat]]-Tabel8[[#This Row],[Costul efectiv]]","v":{"v":0,"d":"0 lei"}}]
[null,"Licențiere",null,null,{"$f":"Tabel3[[#This Row],[Costul proiectat]]-Tabel3[[#This Row],[Costul efectiv]]","v":{"v":0,"d":"0 lei"}},null,"Card de credit",null,null,{"$f":"Tabel8[[#This Row],[Costul proiectat]]-Tabel8[[#This Row],[Costul efectiv]]","v":{"v":0,"d":"0 lei"}}]
[null,"Benzină",null,null,{"$f":"Tabel3[[#This Row],[Costul proiectat]]-Tabel3[[#This Row],[Costul efectiv]]","v":{"v":0,"d":"0 lei"}},null,"Altele",null,null,{"$f":"Tabel8[[#This Row],[Costul proiectat]]-Tabel8[[#This Row],[Costul efectiv]]","v":{"v":0,"d":"0 lei"}}]
[null,"Întreținere",null,null,{"$f":"Tabel3[[#This Row],[Costul proiectat]]-Tabel3[[#This Row],[Costul efectiv]]","v":{"v":0,"d":"0 lei"}},null,"Total",{"$f":"SUBTOTAL(109,Tabel8[Costul proiectat])","v":{"v":0,"d":"0 lei"}},{"$f":"SUBTOTAL(109,Tabel8[Costul efectiv])","v":{"v":0,"d":"0 lei"}},{"$f":"SUBTOTAL(109,Tabel8[Diferență])","v":{"v":0,"d":"0 lei"}}]
[null,"Altele",null,null,{"$f":"Tabel3[[#This Row],[Costul proiectat]]-Tabel3[[#This Row],[Costul efectiv]]","v":{"v":0,"d":"0 lei"}}]
[null,"Total",{"$f":"SUBTOTAL(109,Tabel3[Costul proiectat])","v":{"v":250,"d":"250 lei"}},{"$f":"SUBTOTAL(109,Tabel3[Costul efectiv])","v":{"v":250,"d":"250 lei"}},{"$f":"SUBTOTAL(109,Tabel3[Diferență])","v":{"v":0,"d":"0 lei"}},null,"TAXE","Costul proiectat","Costul efectiv","Diferență"]
[{"$nulls":6},"Regional",null,null,{"$f":"Tabel9[[#This Row],[Costul proiectat]]-Tabel9[[#This Row],[Costul efectiv]]","v":{"v":0,"d":"0 lei"}}]
[null,"ASIGURARE","Costul proiectat","Costul efectiv","Diferență",null,"Județ",null,null,{"$f":"Tabel9[[#This Row],[Costul proiectat]]-Tabel9[[#This Row],[Costul efectiv]]","v":{"v":0,"d":"0 lei"}}]
[null,"Pornire",null,null,{"$f":"Tabel4[[#This Row],[Costul proiectat]]-Tabel4[[#This Row],[Costul efectiv]]","v":{"v":0,"d":"0 lei"}},null,"Local",null,null,{"$f":"Tabel9[[#This Row],[Costul proiectat]]-Tabel9[[#This Row],[Costul efectiv]]","v":{"v":0,"d":"0 lei"}}]
[null,"Sănătate",null,null,{"$f":"Tabel4[[#This Row],[Costul proiectat]]-Tabel4[[#This Row],[Costul efectiv]]","v":{"v":0,"d":"0 lei"}},null,"Altele",null,null,{"$f":"Tabel9[[#This Row],[Costul proiectat]]-Tabel9[[#This Row],[Costul efectiv]]","v":{"v":0,"d":"0 lei"}}]
[null,"Viață",null,null,{"$f":"Tabel4[[#This Row],[Costul proiectat]]-Tabel4[[#This Row],[Costul efectiv]]","v":{"v":0,"d":"0 lei"}},null,"Total",{"$f":"SUBTOTAL(109,Tabel9[Costul proiectat])","v":{"v":0,"d":"0 lei"}},{"$f":"SUBTOTAL(109,Tabel9[Costul efectiv])","v":{"v":0,"d":"0 lei"}},{"$f":"SUBTOTAL(109,Tabel9[Diferență])","v":{"v":0,"d":"0 lei"}}]
[null,"Altele",null,null,{"$f":"Tabel4[[#This Row],[Costul proiectat]]-Tabel4[[#This Row],[Costul efectiv]]","v":{"v":0,"d":"0 lei"}}]
[null,"Total",{"$f":"SUBTOTAL(109,Tabel4[Costul proiectat])","v":{"v":0,"d":"0 lei"}},{"$f":"SUBTOTAL(109,Tabel4[Costul efectiv])","v":{"v":0,"d":"0 lei"}},{"$f":"SUBTOTAL(109,Tabel4[Diferență])","v":{"v":0,"d":"0 lei"}},null,"ECONOMII SAU INVESTIȚII","Costul proiectat","Costul efectiv","Diferență"]
[{"$nulls":6},"Cont pensionare",null,null,{"$f":"Tabel10[[#This Row],[Costul proiectat]]-Tabel10[[#This Row],[Costul efectiv]]","v":{"v":0,"d":"0 lei"}}]
[null,"ALIMENTE","Costul proiectat","Costul efectiv","Diferență",null,"Cont de investiții",null,null,{"$f":"Tabel10[[#This Row],[Costul proiectat]]-Tabel10[[#This Row],[Costul efectiv]]","v":{"v":0,"d":"0 lei"}}]
[null,"Articole de băcănie",null,null,{"$f":"Tabel5[[#This Row],[Costul proiectat]]-Tabel5[[#This Row],[Costul efectiv]]","v":{"v":0,"d":"0 lei"}},null,"Altele",null,null,{"$f":"Tabel10[[#This Row],[Costul proiectat]]-Tabel10[[#This Row],[Costul efectiv]]","v":{"v":0,"d":"0 lei"}}]
[null,"Masă în oraș",null,null,{"$f":"Tabel5[[#This Row],[Costul proiectat]]-Tabel5[[#This Row],[Costul efectiv]]","v":{"v":0,"d":"0 lei"}},null,"Total",{"$f":"SUBTOTAL(109,Tabel10[Costul proiectat])","v":{"v":0,"d":"0 lei"}},{"$f":"SUBTOTAL(109,Tabel10[Costul efectiv])","v":{"v":0,"d":"0 lei"}},{"$f":"SUBTOTAL(109,Tabel10[Diferență])","v":{"v":0,"d":"0 lei"}}]
[null,"Altele",null,null,{"$f":"Tabel5[[#This Row],[Costul proiectat]]-Tabel5[[#This Row],[Costul efectiv]]","v":{"v":0,"d":"0 lei"}}]
[null,"Total",{"$f":"SUBTOTAL(109,Tabel5[Costul proiectat])","v":{"v":0,"d":"0 lei"}},{"$f":"SUBTOTAL(109,Tabel5[Costul efectiv])","v":{"v":0,"d":"0 lei"}},{"$f":"SUBTOTAL(109,Tabel5[Diferență])","v":{"v":0,"d":"0 lei"}},null,"CADOURI ȘI DONAȚII","Costul proiectat","Costul efectiv","Diferență"]
[{"$nulls":6},"Caritate 1",null,null,{"$f":"Tabel11[[#This Row],[Costul proiectat]]-Tabel11[[#This Row],[Costul efectiv]]","v":{"v":0,"d":"0 lei"}}]
[null,"ANIMALE DE CASĂ","Costul proiectat","Costul efectiv","Diferență",null,"Caritate 2",null,null,{"$f":"Tabel11[[#This Row],[Costul proiectat]]-Tabel11[[#This Row],[Costul efectiv]]","v":{"v":0,"d":"0 lei"}}]
[null,"Alimente",null,null,{"$f":"Tabel6[[#This Row],[Costul proiectat]]-Tabel6[[#This Row],[Costul efectiv]]","v":{"v":0,"d":"0 lei"}},null,"Caritate 3",null,null,{"$f":"Tabel11[[#This Row],[Costul proiectat]]-Tabel11[[#This Row],[Costul efectiv]]","v":{"v":0,"d":"0 lei"}}]
[null,"Medicale",null,null,{"$f":"Tabel6[[#This Row],[Costul proiectat]]-Tabel6[[#This Row],[Costul efectiv]]","v":{"v":0,"d":"0 lei"}},null,"Total",{"$f":"SUBTOTAL(109,Tabel11[Costul proiectat])","v":{"v":0,"d":"0 lei"}},{"$f":"SUBTOTAL(109,Tabel11[Costul efectiv])","v":{"v":0,"d":"0 lei"}},{"$f":"SUBTOTAL(109,Tabel11[Diferență])","v":{"v":0,"d":"0 lei"}}]
[null,"Îngrijire",null,null,{"$f":"Tabel6[[#This Row],[Costul proiectat]]-Tabel6[[#This Row],[Costul efectiv]]","v":{"v":0,"d":"0 lei"}}]
[null,"Jucării",null,null,{"$f":"Tabel6[[#This Row],[Costul proiectat]]-Tabel6[[#This Row],[Costul efectiv]]","v":{"v":0,"d":"0 lei"}},null,"JURIDIC","Costul proiectat","Costul efectiv","Diferență"]
[null,"Altele",null,null,{"$f":"Tabel6[[#This Row],[Costul proiectat]]-Tabel6[[#This Row],[Costul efectiv]]","v":{"v":0,"d":"0 lei"}},null,"Avocat",null,null,{"$f":"Tabel12[[#This Row],[Costul proiectat]]-Tabel12[[#This Row],[Costul efectiv]]","v":{"v":0,"d":"0 lei"}}]
[null,"Total",{"$f":"SUBTOTAL(109,Tabel6[Costul proiectat])","v":{"v":0,"d":"0 lei"}},{"$f":"SUBTOTAL(109,Tabel6[Costul efectiv])","v":{"v":0,"d":"0 lei"}},{"$f":"SUBTOTAL(109,Tabel6[Diferență])","v":{"v":0,"d":"0 lei"}},null,"Pensie",null,null,{"$f":"Tabel12[[#This Row],[Costul proiectat]]-Tabel12[[#This Row],[Costul efectiv]]","v":{"v":0,"d":"0 lei"}}]
[{"$nulls":6},"Plăți pentru sechestru sau judecată",null,null,{"$f":"Tabel12[[#This Row],[Costul proiectat]]-Tabel12[[#This Row],[Costul efectiv]]","v":{"v":0,"d":"0 lei"}}]
[null,"ÎNGRIJIRE PERSONALĂ","Costul proiectat","Costul efectiv","Diferență",null,"Altele",null,null,{"$f":"Tabel12[[#This Row],[Costul proiectat]]-Tabel12[[#This Row],[Costul efectiv]]","v":{"v":0,"d":"0 lei"}}]
[null,"Medicale",null,null,{"$f":"Tabel7[[#This Row],[Costul proiectat]]-Tabel7[[#This Row],[Costul efectiv]]","v":{"v":0,"d":"0 lei"}},null,"Total",{"$f":"SUBTOTAL(109,Tabel12[Costul proiectat])","v":{"v":0,"d":"0 lei"}},{"$f":"SUBTOTAL(109,Tabel12[Costul efectiv])","v":{"v":0,"d":"0 lei"}},{"$f":"SUBTOTAL(109,Tabel12[Diferență])","v":{"v":0,"d":"0 lei"}}]
[null,"Păr/unghii",null,null,{"$f":"Tabel7[[#This Row],[Costul proiectat]]-Tabel7[[#This Row],[Costul efectiv]]","v":{"v":0,"d":"0 lei"}}]
[null,"Îmbrăcăminte",null,null,{"$f":"Tabel7[[#This Row],[Costul proiectat]]-Tabel7[[#This Row],[Costul efectiv]]","v":{"v":0,"d":"0 lei"}},null,"COSTUL TOTAL PROGNOZAT",null,null,{"$f":"SUM(C23,C33,C40,C46,C54,C64,H22,H31,H38,H44,H50,H57)","v":{"v":2060,"d":"2,060 lei"}}]
[null,"Curățătorie",null,null,{"$f":"Tabel7[[#This Row],[Costul proiectat]]-Tabel7[[#This Row],[Costul efectiv]]","v":{"v":0,"d":"0 lei"}}]
[null,"Club de sănătate",null,null,{"$f":"Tabel7[[#This Row],[Costul proiectat]]-Tabel7[[#This Row],[Costul efectiv]]","v":{"v":0,"d":"0 lei"}},null,"COSTUL TOTAL EFECTIV",null,null,{"$f":"SUM(D23,D33,D40,D46,D54,D64,I22,I31,I38,I44,I50,I57)","v":{"v":2040,"d":"2,040 lei"}}]
[null,"Datoriile sau taxele către organizație",null,null,{"$f":"Tabel7[[#This Row],[Costul proiectat]]-Tabel7[[#This Row],[Costul efectiv]]","v":{"v":0,"d":"0 lei"}}]
[null,"Altele",null,null,{"$f":"Tabel7[[#This Row],[Costul proiectat]]-Tabel7[[#This Row],[Costul efectiv]]","v":{"v":0,"d":"0 lei"}},null,"DIFERENȚĂ TOTALURI",null,null,{"$f":"SUM(E23,E33,E40,E46,E54,E64,J22,J31,J38,J44,J50,J57)","v":{"v":20,"d":"20 lei"}}]
[null,"Total",{"$f":"SUBTOTAL(109,Tabel7[Costul proiectat])","v":{"v":0,"d":"0 lei"}},{"$f":"SUBTOTAL(109,Tabel7[Costul efectiv])","v":{"v":0,"d":"0 lei"}},{"$f":"SUBTOTAL(109,Tabel7[Diferență])","v":{"v":0,"d":"0 lei"}}]